Workbook

Sheet Regress_Set
A1: Name | B1: Y | C1: X | G1: Corr
A2: 77P | B2: 3.1 | C2: 12553.371 | D2: 0 | E2: =$D2*B2 -> 0 | F2: =$D2*C2 -> 0 | G2: =CORREL(IF(D2:D295,B2:B295),IF(D2:D295,C2:C295)) -> 0.4206836287
A3: 307 | B3: 0 | C3: 10398.445 | D3: 1 | E3: =$D3*B3 -> 0 | F3: =$D3*C3 -> 10398.445
A4: 56R | B4: 5 | C4: 9783.781 | D4: 1 | E4: =$D4*B4 -> 5 | F4: =$D4*C4 -> 9783.781
A5: 691L | B5: 8.2 | C5: 9761.031 | D5: 1 | E5: =$D5*B5 -> 8.2 | F5: =$D5*C5 -> 9761.031
A6: 306 | B6: 6.79 | C6: 9638.484 | D6: 1 | E6: =$D6*B6 -> 6.79 | F6: =$D6*C6 -> 9638.484
A7: 82 | B7: 2.54 | C7: 9370.895 | D7: 1 | E7: =$D7*B7 -> 2.54 | F7: =$D7*C7 -> 9370.895
A8: 626 | B8: 16.68 | C8: 9102.1875 | D8: 1 | E8: =$D8*B8 -> 16.68 | F8: =$D8*C8 -> 9102.1875
A9: 303 | B9: 10.09 | C9: 9005.5 | D9: 1 | E9: =$D9*B9 -> 10.09 | F9: =$D9*C9 -> 9005.5
A10: 81 | B10: 6.57 | C10: 8768.277 | D10: 1 | E10: =$D10*B10 -> 6.57 | F10: =$D10*C10 -> 8768.277
A11: 613 | B11: 8.2 | C11: 8641.473 | D11: 1 | E11: =$D11*B11 -> 8.2 | F11: =$D11*C11 -> 8641.473
A12: 48R | B12: 0 | C12: 8600.219 | D12: 1 | E12: =$D12*B12 -> 0 | F12: =$D12*C12 -> 8600.219
A13: 49R | B13: 7.8 | C13: 8544.387 | D13: 1 | E13: =$D13*B13 -> 7.8 | F13: =$D13*C13 -> 8544.387
A14: 248 | B14: 3.04 | C14: 8360.922 | D14: 1 | E14: =$D14*B14 -> 3.04 | F14: =$D14*C14 -> 8360.922
A15: 62 | B15: 4.37 | C15: 8284.648 | D15: 1 | E15: =$D15*B15 -> 4.37 | F15: =$D15*C15 -> 8284.648
A16: 52 | B16: 7.83 | C16: 7957.207 | D16: 1 | E16: =$D16*B16 -> 7.83 | F16: =$D16*C16 -> 7957.207
A17: 280PA | B17: 0 | C17: 7935.4766 | D17: 0 | E17: =$D17*B17 -> 0 | F17: =$D17*C17 -> 0
A18: 73 | B18: 11.8 | C18: 7791.9453 | D18: 1 | E18: =$D18*B18 -> 11.8 | F18: =$D18*C18 -> 7791.9453
A19: 690L | B19: 5.98 | C19: 7555.711 | D19: 1 | E19: =$D19*B19 -> 5.98 | F19: =$D19*C19 -> 7555.711
A20: 808 | B20: 16.9 | C20: 7369.164 | D20: 1 | E20: =$D20*B20 -> 16.9 | F20: =$D20*C20 -> 7369.164
A21: 53 | B21: 13.49 | C21: 7267.965 | D21: 1 | E21: =$D21*B21 -> 13.49 | F21: =$D21*C21 -> 7267.965
A22: 144 | B22: 9.9 | C22: 7262.289 | D22: 1 | E22: =$D22*B22 -> 9.9 | F22: =$D22*C22 -> 7262.289
A23: 150 | B23: 0 | C23: 7247.3555 | D23: 1 | E23: =$D23*B23 -> 0 | F23: =$D23*C23 -> 7247.3555
A24: 29R | B24: 2.6 | C24: 7169.5117 | D24: 1 | E24: =$D24*B24 -> 2.6 | F24: =$D24*C24 -> 7169.5117
A25: 65 | B25: 10.52 | C25: 7148.4375 | D25: 1 | E25: =$D25*B25 -> 10.52 | F25: =$D25*C25 -> 7148.4375
A26: 202L | B26: 2.8 | C26: 6970.4805 | D26: 1 | E26: =$D26*B26 -> 2.8 | F26: =$D26*C26 -> 6970.4805
A27: 246 | B27: 2.69 | C27: 6817.3438 | D27: 1 | E27: =$D27*B27 -> 2.69 | F27: =$D27*C27 -> 6817.3438
A28: 332 | B28: 1.87 | C28: 6693.3906 | D28: 1 | E28: =$D28*B28 -> 1.87 | F28: =$D28*C28 -> 6693.3906
A29: 60R | B29: 6.69 | C29: 6609.715 | D29: 0 | E29: =$D29*B29 -> 0 | F29: =$D29*C29 -> 0
A30: 192 | B30: 0 | C30: 6493.215 | D30: 1 | E30: =$D30*B30 -> 0 | F30: =$D30*C30 -> 6493.215
A31: 316 | B31: 12.99 | C31: 6420.0625 | D31: 1 | E31: =$D31*B31 -> 12.99 | F31: =$D31*C31 -> 6420.0625
A32: 67 | B32: 5.6 | C32: 6370.7305 | D32: 1 | E32: =$D32*B32 -> 5.6 | F32: =$D32*C32 -> 6370.7305
A33: 341 | B33: 8.94 | C33: 6352.301 | D33: 1 | E33: =$D33*B33 -> 8.94 | F33: =$D33*C33 -> 6352.301
A34: 239 | B34: 0 | C34: 6187.0938 | D34: 1 | E34: =$D34*B34 -> 0 | F34: =$D34*C34 -> 6187.0938
A35: 85 | B35: 11.34 | C35: 6126.5586 | D35: 1 | E35: =$D35*B35 -> 11.34 | F35: =$D35*C35 -> 6126.5586
A36: 308 | B36: 10.14 | C36: 6097.6445 | D36: 1 | E36: =$D36*B36 -> 10.14 | F36: =$D36*C36 -> 6097.6445
A37: 51 | B37: 10.87 | C37: 6071.6875 | D37: 1 | E37: =$D37*B37 -> 10.87 | F37: =$D37*C37 -> 6071.6875
A38: 188 | B38: 8.21 | C38: 5917.66 | D38: 1 | E38: =$D38*B38 -> 8.21 | F38: =$D38*C38 -> 5917.66
A39: 806 | B39: 13.05 | C39: 5821.3047 | D39: 1 | E39: =$D39*B39 -> 13.05 | F39: =$D39*C39 -> 5821.3047
A40: 143 | B40: 3.58 | C40: 5728.008 | D40: 1 | E40: =$D40*B40 -> 3.58 | F40: =$D40*C40 -> 5728.008
A41: 134 | B41: 0 | C41: 5701.5117 | D41: 1 | E41: =$D41*B41 -> 0 | F41: =$D41*C41 -> 5701.5117
A42: 80P | B42: 0 | C42: 5518.492 | D42: 1 | E42: =$D42*B42 -> 0 | F42: =$D42*C42 -> 5518.492
A43: 93 | B43: 7.81 | C43: 5446.1055 | D43: 1 | E43: =$D43*B43 -> 7.81 | F43: =$D43*C43 -> 5446.1055
A44: 72 | B44: 6.96 | C44: 5407.1836 | D44: 1 | E44: =$D44*B44 -> 6.96 | F44: =$D44*C44 -> 5407.1836
A45: 113 | B45: 15.6 | C45: 5396.547 | D45: 1 | E45: =$D45*B45 -> 15.6 | F45: =$D45*C45 -> 5396.547
A46: 661 | B46: 2.7 | C46: 5378.2305 | D46: 1 | E46: =$D46*B46 -> 2.7 | F46: =$D46*C46 -> 5378.2305
A47: 331 | B47: 0 | C47: 5352.0312 | D47: 1 | E47: =$D47*B47 -> 0 | F47: =$D47*C47 -> 5352.0312
A48: 629 | B48: 6.23 | C48: 5331.1055 | D48: 1 | E48: =$D48*B48 -> 6.23 | F48: =$D48*C48 -> 5331.1055
A49: 244 | B49: 2.3 | C49: 5301.7656 | D49: 0 | E49: =$D49*B49 -> 0 | F49: =$D49*C49 -> 0
A50: 124 | B50: 8.8 | C50: 5240.301 | D50: 1 | E50: =$D50*B50 -> 8.8 | F50: =$D50*C50 -> 5240.301
A51: 10K | B51: 12.04 | C51: 5140.0234 | D51: 1 | E51: =$D51*B51 -> 12.04 | F51: =$D51*C51 -> 5140.0234
A52: 130 | B52: 0 | C52: 5052.8945 | D52: 1 | E52: =$D52*B52 -> 0 | F52: =$D52*C52 -> 5052.8945
A53: 151 | B53: 0 | C53: 5047.3047 | D53: 1 | E53: =$D53*B53 -> 0 | F53: =$D53*C53 -> 5047.3047
A54: 107 | B54: 7.35 | C54: 5030.3867 | D54: 1 | E54: =$D54*B54 -> 7.35 | F54: =$D54*C54 -> 5030.3867
A55: 309 | B55: 14.57 | C55: 4994.8594 | D55: 1 | E55: =$D55*B55 -> 14.57 | F55: =$D55*C55 -> 4994.8594
A56: 598 | B56: 4 | C56: 4921.7305 | D56: 1 | E56: =$D56*B56 -> 4 | F56: =$D56*C56 -> 4921.7305
A57: 676 | B57: 7.28 | C57: 4842.465 | D57: 1 | E57: =$D57*B57 -> 7.28 | F57: =$D57*C57 -> 4842.465
A58: 91 | B58: 3.65 | C58: 4818.4766 | D58: 1 | E58: =$D58*B58 -> 3.65 | F58: =$D58*C58 -> 4818.4766
A59: 132 | B59: 1.48 | C59: 4795.25 | D59: 1 | E59: =$D59*B59 -> 1.48 | F59: =$D59*C59 -> 4795.25
A60: 106 | B60: 0 | C60: 4746.1836 | D60: 1 | E60: =$D60*B60 -> 0 | F60: =$D60*C60 -> 4746.1836
A61: 165 | B61: 3.49 | C61: 4703.5547 | D61: 1 | E61: =$D61*B61 -> 3.49 | F61: =$D61*C61 -> 4703.5547
A62: 180 | B62: 7.37 | C62: 4673.297 | D62: 1 | E62: =$D62*B62 -> 7.37 | F62: =$D62*C62 -> 4673.297
A63: 108 | B63: 1.37 | C63: 4623.1797 | D63: 1 | E63: =$D63*B63 -> 1.37 | F63: =$D63*C63 -> 4623.1797
A64: 325 | B64: 2.19 | C64: 4593.4375 | D64: 1 | E64: =$D64*B64 -> 2.19 | F64: =$D64*C64 -> 4593.4375
A65: 119 | B65: 0 | C65: 4526.4727 | D65: 1 | E65: =$D65*B65 -> 0 | F65: =$D65*C65 -> 4526.4727
A66: 313 | B66: 9.39 | C66: 4523.324 | D66: 1 | E66: =$D66*B66 -> 9.39 | F66: =$D66*C66 -> 4523.324
A67: 338 | B67: 1 | C67: 4471.2188 | D67: 1 | E67: =$D67*B67 -> 1 | F67: =$D67*C67 -> 4471.2188
A68: 339 | B68: 14.49 | C68: 4441.758 | D68: 1 | E68: =$D68*B68 -> 14.49 | F68: =$D68*C68 -> 4441.758
A69: 168 | B69: 4.5 | C69: 4382.3125 | D69: 1 | E69: =$D69*B69 -> 4.5 | F69: =$D69*C69 -> 4382.3125
A70: 46R | B70: 6.1 | C70: 4373.0566 | D70: 0 | E70: =$D70*B70 -> 0 | F70: =$D70*C70 -> 0
A71: 243 | B71: 1.6 | C71: 4332.551 | D71: 1 | E71: =$D71*B71 -> 1.6 | F71: =$D71*C71 -> 4332.551
A72: 156 | B72: 10.4 | C72: 4260.742 | D72: 1 | E72: =$D72*B72 -> 10.4 | F72: =$D72*C72 -> 4260.742
A73: 141 | B73: 3.1 | C73: 4173.418 | D73: 1 | E73: =$D73*B73 -> 3.1 | F73: =$D73*C73 -> 4173.418
A74: 54P | B74: 8.4 | C74: 4132.246 | D74: 1 | E74: =$D74*B74 -> 8.4 | F74: =$D74*C74 -> 4132.246
A75: 612 | B75: 7.97 | C75: 4052.7183 | D75: 1 | E75: =$D75*B75 -> 7.97 | F75: =$D75*C75 -> 4052.7183
A76: 116 | B76: 0 | C76: 4024.926 | D76: 1 | E76: =$D76*B76 -> 0 | F76: =$D76*C76 -> 4024.926
A77: 145 | B77: 8.37 | C77: 3980.9082 | D77: 1 | E77: =$D77*B77 -> 8.37 | F77: =$D77*C77 -> 3980.9082
A78: 131 | B78: 0 | C78: 3938.5657 | D78: 1 | E78: =$D78*B78 -> 0 | F78: =$D78*C78 -> 3938.5657
A79: 660 | B79: 0 | C79: 3856.5552 | D79: 1 | E79: =$D79*B79 -> 0 | F79: =$D79*C79 -> 3856.5552
A80: 232 | B80: 0 | C80: 3723.7646 | D80: 1 | E80: =$D80*B80 -> 0 | F80: =$D80*C80 -> 3723.7646
A81: 190 | B81: 4.6 | C81: 3698.8794 | D81: 1 | E81: =$D81*B81 -> 4.6 | F81: =$D81*C81 -> 3698.8794
A82: 152 | B82: 0.8 | C82: 3683.912 | D82: 1 | E82: =$D82*B82 -> 0.8 | F82: =$D82*C82 -> 3683.912
A83: 138 | B83: 5.9 | C83: 3672.1404 | D83: 1 | E83: =$D83*B83 -> 5.9 | F83: =$D83*C83 -> 3672.1404
A84: 310 | B84: 2.3 | C84: 3619.1199 | D84: 1 | E84: =$D84*B84 -> 2.3 | F84: =$D84*C84 -> 3619.1199
A85: 175 | B85: 14.54 | C85: 3556.1274 | D85: 0 | E85: =$D85*B85 -> 0 | F85: =$D85*C85 -> 0
A86: 78P | B86: 0 | C86: 3496.4927 | D86: 1 | E86: =$D86*B86 -> 0 | F86: =$D86*C86 -> 3496.4927
A87: 57 | B87: 10.64 | C87: 3450.8218 | D87: 1 | E87: =$D87*B87 -> 10.64 | F87: =$D87*C87 -> 3450.8218
A88: 337 | B88: 0 | C88: 3418.0872 | D88: 1 | E88: =$D88*B88 -> 0 | F88: =$D88*C88 -> 3418.0872
A89: 344 | B89: 0.86 | C89: 3339.599 | D89: 1 | E89: =$D89*B89 -> 0.86 | F89: =$D89*C89 -> 3339.599
A90: 179 | B90: 0.98 | C90: 3264.091 | D90: 1 | E90: =$D90*B90 -> 0.98 | F90: =$D90*C90 -> 3264.091
A91: 604 | B91: 3.4 | C91: 3232.269 | D91: 1 | E91: =$D91*B91 -> 3.4 | F91: =$D91*C91 -> 3232.269
A92: 189 | B92: 2.86 | C92: 3215.0356 | D92: 1 | E92: =$D92*B92 -> 2.86 | F92: =$D92*C92 -> 3215.0356
A93: 605 | B93: 0 | C93: 3193.0896 | D93: 0 | E93: =$D93*B93 -> 0 | F93: =$D93*C93 -> 0
A94: 236 | B94: 0 | C94: 3170.3408 | D94: 1 | E94: =$D94*B94 -> 0 | F94: =$D94*C94 -> 3170.3408
A95: 60 | B95: 0 | C95: 3143.2617 | D95: 1 | E95: =$D95*B95 -> 0 | F95: =$D95*C95 -> 3143.2617
A96: 128 | B96: 0 | C96: 3066.7686 | D96: 1 | E96: =$D96*B96 -> 0 | F96: =$D96*C96 -> 3066.7686
A97: 80 | B97: 0.88 | C97: 3025.6987 | D97: 1 | E97: =$D97*B97 -> 0.88 | F97: =$D97*C97 -> 3025.6987
A98: 37R | B98: 6.4 | C98: 3007.794 | D98: 1 | E98: =$D98*B98 -> 6.4 | F98: =$D98*C98 -> 3007.794
A99: 50 | B99: 10.59 | C99: 2950.8345 | D99: 1 | E99: =$D99*B99 -> 10.59 | F99: =$D99*C99 -> 2950.8345
A100: 677L | B100: 6.21 | C100: 2937.4067 | D100: 1 | E100: =$D100*B100 -> 6.21 | F100: =$D100*C100 -> 2937.4067
A101: 267 | B101: 0 | C101: 2875.4912 | D101: 1 | E101: =$D101*B101 -> 0 | F101: =$D101*C101 -> 2875.4912
A102: 234 | B102: 5.02 | C102: 2853.1953 | D102: 1 | E102: =$D102*B102 -> 5.02 | F102: =$D102*C102 -> 2853.1953
A103: 69P | B103: 0 | C103: 2784.8875 | D103: 1 | E103: =$D103*B103 -> 0 | F103: =$D103*C103 -> 2784.8875
A104: 802 | B104: 13.97 | C104: 2772.519 | D104: 0 | E104: =$D104*B104 -> 0 | F104: =$D104*C104 -> 0
A105: 191 | B105: 7.5 | C105: 2709.8926 | D105: 1 | E105: =$D105*B105 -> 7.5 | F105: =$D105*C105 -> 2709.8926
A106: 805 | B106: 9.69 | C106: 2671.7942 | D106: 1 | E106: =$D106*B106 -> 9.69 | F106: =$D106*C106 -> 2671.7942
A107: 11K | B107: 3.37 | C107: 2667.463 | D107: 1 | E107: =$D107*B107 -> 3.37 | F107: =$D107*C107 -> 2667.463
A108: 154 | B108: 0 | C108: 2660.898 | D108: 1 | E108: =$D108*B108 -> 0 | F108: =$D108*C108 -> 2660.898
A109: 110 | B109: 0 | C109: 2649.4282 | D109: 1 | E109: =$D109*B109 -> 0 | F109: =$D109*C109 -> 2649.4282
A110: 597 | B110: 3.75 | C110: 2615.518 | D110: 0 | E110: =$D110*B110 -> 0 | F110: =$D110*C110 -> 0
A111: 129 | B111: 1.6 | C111: 2594.941 | D111: 1 | E111: =$D111*B111 -> 1.6 | F111: =$D111*C111 -> 2594.941
A112: 656 | B112: 0 | C112: 2575.8857 | D112: 1 | E112: =$D112*B112 -> 0 | F112: =$D112*C112 -> 2575.8857
A113: 142 | B113: 8.3 | C113: 2460.296 | D113: 1 | E113: =$D113*B113 -> 8.3 | F113: =$D113*C113 -> 2460.296
A114: 682 | B114: 6.74 | C114: 2450.4858 | D114: 1 | E114: =$D114*B114 -> 6.74 | F114: =$D114*C114 -> 2450.4858
A115: 109 | B115: 0 | C115: 2422.3274 | D115: 1 | E115: =$D115*B115 -> 0 | F115: =$D115*C115 -> 2422.3274
A116: 323 | B116: 5.89 | C116: 2371.3872 | D116: 1 | E116: =$D116*B116 -> 5.89 | F116: =$D116*C116 -> 2371.3872
A117: 52R | B117: 14.4 | C117: 2278.5886 | D117: 1 | E117: =$D117*B117 -> 14.4 | F117: =$D117*C117 -> 2278.5886
A118: 608 | B118: 4.1 | C118: 2265.2983 | D118: 1 | E118: =$D118*B118 -> 4.1 | F118: =$D118*C118 -> 2265.2983
A119: 345 | B119: 7.67 | C119: 2231.6199 | D119: 1 | E119: =$D119*B119 -> 7.67 | F119: =$D119*C119 -> 2231.6199
A120: 98 | B120: 0 | C120: 2141.8555 | D120: 1 | E120: =$D120*B120 -> 0 | F120: =$D120*C120 -> 2141.8555
A121: 88 | B121: 0 | C121: 2107.726 | D121: 1 | E121: =$D121*B121 -> 0 | F121: =$D121*C121 -> 2107.726
A122: 252 | B122: 2.9 | C122: 2090.4292 | D122: 1 | E122: =$D122*B122 -> 2.9 | F122: =$D122*C122 -> 2090.4292
A123: 624 | B123: 13.88 | C123: 1986.8887 | D123: 0 | E123: =$D123*B123 -> 0 | F123: =$D123*C123 -> 0
A124: 255 | B124: 5.28 | C124: 1981.6963 | D124: 0 | E124: =$D124*B124 -> 0 | F124: =$D124*C124 -> 0
A125: 314 | B125: 0 | C125: 1957.7922 | D125: 1 | E125: =$D125*B125 -> 0 | F125: =$D125*C125 -> 1957.7922
A126: 51R | B126: 0 | C126: 1946.023 | D126: 1 | E126: =$D126*B126 -> 0 | F126: =$D126*C126 -> 1946.023
A127: 118 | B127: 0 | C127: 1843.2202 | D127: 1 | E127: =$D127*B127 -> 0 | F127: =$D127*C127 -> 1843.2202
A128: 609 | B128: 1.4 | C128: 1826.0903 | D128: 0 | E128: =$D128*B128 -> 0 | F128: =$D128*C128 -> 0
A129: 86R | B129: 0 | C129: 1785.8611 | D129: 1 | E129: =$D129*B129 -> 0 | F129: =$D129*C129 -> 1785.8611
A130: 78 | B130: 1.79 | C130: 1774.0015 | D130: 1 | E130: =$D130*B130 -> 1.79 | F130: =$D130*C130 -> 1774.0015
A131: 105 | B131: 3.65 | C131: 1760.4429 | D131: 1 | E131: =$D131*B131 -> 3.65 | F131: =$D131*C131 -> 1760.4429
A132: 678 | B132: 10.87 | C132: 1750.0178 | D132: 1 | E132: =$D132*B132 -> 10.87 | F132: =$D132*C132 -> 1750.0178
A133: 195 | B133: 7.99 | C133: 1728.4448 | D133: 1 | E133: =$D133*B133 -> 7.99 | F133: =$D133*C133 -> 1728.4448
A134: 300 | B134: 0 | C134: 1595.2539 | D134: 1 | E134: =$D134*B134 -> 0 | F134: =$D134*C134 -> 1595.2539
A135: 593 | B135: 0 | C135: 1547.0303 | D135: 1 | E135: =$D135*B135 -> 0 | F135: =$D135*C135 -> 1547.0303
A136: 139 | B136: 2.7 | C136: 1247.8955 | D136: 1 | E136: =$D136*B136 -> 2.7 | F136: =$D136*C136 -> 1247.8955
A137: 153 | B137: 0 | C137: 1238.5994 | D137: 1 | E137: =$D137*B137 -> 0 | F137: =$D137*C137 -> 1238.5994
A138: 251 | B138: 2.79 | C138: 1151.2224 | D138: 1 | E138: =$D138*B138 -> 2.79 | F138: =$D138*C138 -> 1151.2224
A139: 250 | B139: 0 | C139: 1061.3347 | D139: 1 | E139: =$D139*B139 -> 0 | F139: =$D139*C139 -> 1061.3347
A140: 266 | B140: 0 | C140: 984.0843 | D140: 1 | E140: =$D140*B140 -> 0 | F140: =$D140*C140 -> 984.0843
A141: 311 | B141: 5.69 | C141: 821.07104 | D141: 1 | E141: =$D141*B141 -> 5.69 | F141: =$D141*C141 -> 821.07104
A142: 589 | B142: 5.1 | C142: 816.6374 | D142: 1 | E142: =$D142*B142 -> 5.1 | F142: =$D142*C142 -> 816.6374
A143: 254 | B143: 4.78 | C143: 777.77783 | D143: 1 | E143: =$D143*B143 -> 4.78 | F143: =$D143*C143 -> 777.77783
A144: 58P | B144: 1.6 | C144: 729.02783 | D144: 1 | E144: =$D144*B144 -> 1.6 | F144: =$D144*C144 -> 729.02783
A145: 99 | B145: 0 | C145: 591.6946 | D145: 1 | E145: =$D145*B145 -> 0 | F145: =$D145*C145 -> 591.6946
A146: 147 | B146: 0 | C146: 523.2234 | D146: 0 | E146: =$D146*B146 -> 0 | F146: =$D146*C146 -> 0
A147: 440 | B147: 1.25 | C147: 484.3181 | D147: 0 | E147: =$D147*B147 -> 0 | F147: =$D147*C147 -> 0
A148: 318 | B148: 1.65 | C148: 409.8086 | D148: 1 | E148: =$D148*B148 -> 1.65 | F148: =$D148*C148 -> 409.8086
A149: 618 | B149: 10.45 | C149: 270.23315 | D149: 1 | E149: =$D149*B149 -> 10.45 | F149: =$D149*C149 -> 270.23315
A150: 600 | B150: 0 | C150: 126.63873 | D150: 1 | E150: =$D150*B150 -> 0 | F150: =$D150*C150 -> 126.63873
A151: 621 | B151: 5.34 | C151: 62.943054 | D151: 1 | E151: =$D151*B151 -> 5.34 | F151: =$D151*C151 -> 62.943054
A152: 127 | B152: 0.99 | C152: -24.227524 | D152: 1 | E152: =$D152*B152 -> 0.99 | F152: =$D152*C152 -> -24.227524
A153: 602 | B153: 4.66 | C153: -546.9619 | D153: 1 | E153: =$D153*B153 -> 4.66 | F153: =$D153*C153 -> -546.9619
A154: 528PL | B154: 0 | C154: -991.5608 | D154: 1 | E154: =$D154*B154 -> 0 | F154: =$D154*C154 -> -991.5608
A155: 75 | B155: 0 | C155: -1064.7405 | D155: 1 | E155: =$D155*B155 -> 0 | F155: =$D155*C155 -> -1064.7405
A156: 529 | B156: 0 | C156: -1158.1487 | D156: 1 | E156: =$D156*B156 -> 0 | F156: =$D156*C156 -> -1158.1487
A157: 528 | B157: 0 | C157: -1305.9094 | D157: 1 | E157: =$D157*B157 -> 0 | F157: =$D157*C157 -> -1305.9094
A158: 621L | B158: 4.82 | C158: -1545.6199 | D158: 0 | E158: =$D158*B158 -> 0 | F158: =$D158*C158 -> 0
A159: 540 | B159: 0 | C159: -1898.575 | D159: 1 | E159: =$D159*B159 -> 0 | F159: =$D159*C159 -> -1898.575
A160: 633 | B160: 1.99 | C160: -2074.203 | D160: 1 | E160: =$D160*B160 -> 1.99 | F160: =$D160*C160 -> -2074.203
A161: 115 | B161: 0 | C161: -2157.4993 | D161: 1 | E161: =$D161*B161 -> 0 | F161: =$D161*C161 -> -2157.4993
A162: 537 | B162: 0 | C162: -2314.6782 | D162: 1 | E162: =$D162*B162 -> 0 | F162: =$D162*C162 -> -2314.6782
A163: 632 | B163: 0.6 | C163: -2741.6084 | D163: 1 | E163: =$D163*B163 -> 0.6 | F163: =$D163*C163 -> -2741.6084
A164: 521 | B164: 0 | C164: -4123.4233 | D164: 1 | E164: =$D164*B164 -> 0 | F164: =$D164*C164 -> -4123.4233
A165: 631 | B165: 0 | C165: -4466.291 | D165: 1 | E165: =$D165*B165 -> 0 | F165: =$D165*C165 -> -4466.291
A166: 521L | B166: 0 | C166: -4543.949 | D166: 1 | E166: =$D166*B166 -> 0 | F166: =$D166*C166 -> -4543.949
A167: 599 | B167: 2.89 | C167: -5409.8906 | D167: 1 | E167: =$D167*B167 -> 2.89 | F167: =$D167*C167 -> -5409.8906
A168: 87R | B168: 0 | C168: -8738.238 | D168: 1 | E168: =$D168*B168 -> 0 | F168: =$D168*C168 -> -8738.238
A169: 591 | B169: 0 | C169: 19099.137 | D169: 0 | E169: =$D169*B169 -> 0 | F169: =$D169*C169 -> 0
A170: 66 | B170: 10.6 | C170: 10474.508 | D170: 0 | E170: =$D170*B170 -> 0 | F170: =$D170*C170 -> 0
A171: 280PL | B171: 8.87 | C171: 9835.4375 | D171: 1 | E171: =$D171*B171 -> 8.87 | F171: =$D171*C171 -> 9835.4375
A172: 247 | B172: 1.78 | C172: 9781.141 | D172: 1 | E172: =$D172*B172 -> 1.78 | F172: =$D172*C172 -> 9781.141
A173: 57R | B173: 12.43 | C173: 9726.059 | D173: 1 | E173: =$D173*B173 -> 12.43 | F173: =$D173*C173 -> 9726.059
A174: 686 | B174: 8.2 | C174: 9508.6875 | D174: 1 | E174: =$D174*B174 -> 8.2 | F174: =$D174*C174 -> 9508.6875
A175: 326 | B175: 7.4 | C175: 9348.406 | D175: 1 | E175: =$D175*B175 -> 7.4 | F175: =$D175*C175 -> 9348.406
A176: 92 | B176: 12.5 | C176: 9045.434 | D176: 1 | E176: =$D176*B176 -> 12.5 | F176: =$D176*C176 -> 9045.434
A177: 302 | B177: 6.66 | C177: 8974.945 | D177: 1 | E177: =$D177*B177 -> 6.66 | F177: =$D177*C177 -> 8974.945
A178: 71 | B178: 2.68 | C178: 8744.492 | D178: 1 | E178: =$D178*B178 -> 2.68 | F178: =$D178*C178 -> 8744.492
A179: 623 | B179: 22.42 | C179: 8615.5 | D179: 1 | E179: =$D179*B179 -> 22.42 | F179: =$D179*C179 -> 8615.5
A180: 68 | B180: 13.58 | C180: 8592.477 | D180: 1 | E180: =$D180*B180 -> 13.58 | F180: =$D180*C180 -> 8592.477
A181: 74 | B181: 17.32 | C181: 8486.469 | D181: 1 | E181: =$D181*B181 -> 17.32 | F181: =$D181*C181 -> 8486.469
A182: 70 | B182: 4.7 | C182: 8328.867 | D182: 1 | E182: =$D182*B182 -> 4.7 | F182: =$D182*C182 -> 8328.867
A183: 61R | B183: 21.6 | C183: 8257.73 | D183: 1 | E183: =$D183*B183 -> 21.6 | F183: =$D183*C183 -> 8257.73
A184: 245 | B184: 9.27 | C184: 7956.1875 | D184: 1 | E184: =$D184*B184 -> 9.27 | F184: =$D184*C184 -> 7956.1875
A185: 346 | B185: 9.04 | C185: 7874.586 | D185: 1 | E185: =$D185*B185 -> 9.04 | F185: =$D185*C185 -> 7874.586
A186: 69 | B186: 0 | C186: 7676.4785 | D186: 1 | E186: =$D186*B186 -> 0 | F186: =$D186*C186 -> 7676.4785
A187: 622 | B187: 17.32 | C187: 7462.0586 | D187: 1 | E187: =$D187*B187 -> 17.32 | F187: =$D187*C187 -> 7462.0586
A188: 79R | B188: 4 | C188: 7333.961 | D188: 1 | E188: =$D188*B188 -> 4 | F188: =$D188*C188 -> 7333.961
A189: 149 | B189: 0 | C189: 7266.465 | D189: 1 | E189: =$D189*B189 -> 0 | F189: =$D189*C189 -> 7266.465
A190: 586 | B190: 2.46 | C190: 7258.6123 | D190: 1 | E190: =$D190*B190 -> 2.46 | F190: =$D190*C190 -> 7258.6123
A191: 328 | B191: 7 | C191: 7216.133 | D191: 1 | E191: =$D191*B191 -> 7 | F191: =$D191*C191 -> 7216.133
A192: 19R | B192: 5.5 | C192: 7165.4375 | D192: 1 | E192: =$D192*B192 -> 5.5 | F192: =$D192*C192 -> 7165.4375
A193: 315 | B193: 9.12 | C193: 7072.5156 | D193: 1 | E193: =$D193*B193 -> 9.12 | F193: =$D193*C193 -> 7072.5156
A194: 47P | B194: 9.2 | C194: 6885.466 | D194: 1 | E194: =$D194*B194 -> 9.2 | F194: =$D194*C194 -> 6885.466
A195: 54 | B195: 15.3 | C195: 6816.91 | D195: 1 | E195: =$D195*B195 -> 15.3 | F195: =$D195*C195 -> 6816.91
A196: 8K | B196: 1.9 | C196: 6634.578 | D196: 1 | E196: =$D196*B196 -> 1.9 | F196: =$D196*C196 -> 6634.578
A197: 592 | B197: 2.57 | C197: 6546.391 | D197: 0 | E197: =$D197*B197 -> 0 | F197: =$D197*C197 -> 0
A198: 804 | B198: 14.84 | C198: 6423.086 | D198: 1 | E198: =$D198*B198 -> 14.84 | F198: =$D198*C198 -> 6423.086
A199: 807 | B199: 10.87 | C199: 6412.914 | D199: 1 | E199: =$D199*B199 -> 10.87 | F199: =$D199*C199 -> 6412.914
A200: 59 | B200: 4.39 | C200: 6363.629 | D200: 0 | E200: =$D200*B200 -> 0 | F200: =$D200*C200 -> 0
... 96 more rows
